bitfinex/quotes_BTCUSD_20260308
["timestamp","ask_amount","ask_price","bid_price","bid_amount"]
[1772976568663,0.00152,67155.0,67144.0,0.13632114]
[1772976569394,0.00152,67155.0,67144.0,0.11632257]
[1772976570297,0.07445572,67154.0,67144.0,0.11632257]
[1772976573169,0.07445572,67154.0,67144.0,0.11652257]
[1772976575461,0.07445572,67154.0,67145.0,0.06185433]
[1772976576052,0.07444617,67163.0,67145.0,0.06185433]
[1772976576407,0.07444617,67163.0,67149.0,0.06185433]
[1772976576605,0.00152,67162.0,67149.0,0.06185433]
[1772976577016,0.07444796,67161.0,67151.0,0.06185433]
[1772976577475,0.00152,67160.0,67151.0,0.06185433]
[1772976577679,0.07444386,67165.0,67151.0,0.06185433]
[1772976577680,0.00152,67161.0,67151.0,0.06185433]
[1772976579082,0.07444907,67160.0,67152.0,0.07445794]
[1772976580157,0.00152,67161.0,67153.0,0.06185433]
[1772976580310,0.07444809,67161.0,67153.0,0.06185433]
[1772976581224,0.07444556,67164.0,67155.0,0.06185433]
[1772976581225,0.00152,67164.0,67155.0,0.06185433]
[1772976581442,0.07444242,67166.0,67156.0,0.06185433]
[1772976581637,0.00152,67164.0,67156.0,0.06185433]
[1772976581865,0.00022001,67167.0,67156.0,0.06185433]
[1772976582036,0.00022001,67167.0,67154.0,0.05956447]
[1772976582037,0.00022001,67167.0,67158.0,0.06185433]
[1772976582395,0.07466162,67167.0,67155.0,0.06185433]
[1772976582760,0.07466162,67167.0,67155.0,0.06337433]
[1772976583360,0.07466162,67167.0,67156.0,0.07445351]
[1772976583560,0.00152,67166.0,67156.0,0.07445351]
[1772976583996,0.11662758,67166.0,67156.0,0.07445351]
[1772976585701,0.07444353,67165.0,67156.0,0.07445351]
[1772976586269,0.07444353,67165.0,67154.0,0.07445527]
[1772976586270,0.11510758,67164.0,67154.0,0.07445527]
[1772976586516,0.07444353,67165.0,67154.0,0.07445527]
[1772976587851,0.07444353,67165.0,67153.0,0.0002]
[1772976588053,0.11510758,67164.0,67153.0,0.0002]
[1772976589950,0.07444575,67163.0,67153.0,0.0002]
[1772976591288,0.07444575,67163.0,67153.0,3.356e-05]
[1772976591510,0.18955333,67163.0,67153.0,3.356e-05]
[1772976593071,0.18955333,67163.0,67150.0,0.07416082]
[1772976593269,0.18955333,67163.0,67150.0,0.07399436]
[1772976593468,0.11510758,67162.0,67149.0,0.07446115]
[1772976593626,0.11510758,67162.0,67149.0,0.07458049]
[1772976594259,0.07444796,67161.0,67149.0,0.07458049]
[1772976594640,0.00152,67160.0,67149.0,0.07458049]
[1772976595294,0.00152,67160.0,67149.0,0.13643482]
[1772976595835,0.00152,67160.0,67149.0,0.06197367]
[1772976596046,0.11510758,67159.0,67146.0,0.0002]
[1772976596245,0.11510758,67158.0,67146.0,0.0002]
[1772976596450,0.14756372,67159.0,67147.0,0.11606052]
[1772976596451,0.07456947,67159.0,67147.0,0.11606052]
[1772976596683,0.07456947,67159.0,67148.0,0.06185433]
[1772976597763,0.07456947,67159.0,67148.0,0.04696172]
[1772976597963,0.00152,67158.0,67148.0,0.04696172]
[1772976598507,0.07597217,67158.0,67149.0,0.12886929]
[1772976598925,0.07597217,67158.0,67148.0,0.0744623]
[1772976599759,0.07445217,67158.0,67148.0,0.0744623]
[1772976599974,0.00152,67157.0,67146.0,0.12907251]
[1772976600484,0.07445351,67156.0,67146.0,0.0002]
[1772976600697,0.11510758,67155.0,67140.0,0.00015]
[1772976600940,0.11510758,67155.0,67137.0,0.0002]
[1772976601139,0.11510758,67153.0,67137.0,0.0002]
[1772976601663,0.14747959,67152.0,67137.0,0.0002]
[1772976601811,0.11510758,67150.0,67135.0,0.07467662]
[1772976602021,0.11510758,67149.0,67135.0,0.07467662]
[1772976602227,0.11662758,67148.0,67135.0,0.07467662]
[1772976602424,0.11662758,67148.0,67130.0,0.0002]
[1772976602425,0.11510758,67146.0,67130.0,0.0002]
[1772976602789,0.27542716,67145.0,67130.0,0.0002]
[1772976603087,0.12794757,67143.0,67130.0,0.0002]
[1772976603256,0.12794757,67141.0,67128.0,0.0002]
[1772976603650,0.00152,67140.0,67128.0,0.0002]
[1772976604033,0.00152,67140.0,67126.0,0.0002]
[1772976604234,0.00152,67140.0,67114.0,0.0002]
[1772976604235,0.12794757,67139.0,67114.0,0.0002]
[1772976604476,0.12285994,67137.0,67114.0,0.0002]
[1772976604646,0.00152,67136.0,67115.0,0.05440802]
[1772976604847,0.12285994,67135.0,67115.0,0.05440802]
[1772976605168,0.12285994,67135.0,67114.0,0.0002]
[1772976605569,0.12285994,67135.0,67114.0,0.05460802]
[1772976605570,0.12285994,67133.0,67114.0,0.05460802]
[1772976605776,0.12285994,67133.0,67114.0,0.0002]
[1772976605978,0.07447347,67139.0,67114.0,0.0002]
[1772976605979,0.07446235,67149.0,67115.0,0.1577081]
[1772976606335,0.07598459,67147.0,67119.0,0.12292097]
[1772976606529,0.07598459,67147.0,67123.0,0.12292097]
[1772976606690,0.00152,67146.0,67126.0,0.05440802]
[1772976606903,0.00152,67146.0,67128.0,0.05440802]
[1772976607124,0.07446459,67147.0,67130.0,0.05440802]
[1772976607321,0.00152,67146.0,67130.0,0.05440802]
[1772976607524,0.00152,67145.0,67130.0,0.05440802]
[1772976608044,0.00152,67144.0,67130.0,0.05440802]
[1772976608248,0.00022001,67146.0,67130.0,0.05440802]
[1772976608496,0.00152,67145.0,67130.0,0.05440802]
[1772976608671,0.07446681,67144.0,67132.0,0.05440802]
[1772976608875,0.00152,67143.0,67132.0,0.05440802]
[1772976609051,0.12437994,67143.0,67128.0,0.07448384]
[1772976609249,0.07446681,67144.0,67129.0,0.05440802]
[1772976609468,0.07468682,67146.0,67130.0,0.12292097]
[1772976609633,0.07468682,67146.0,67134.0,0.12292097]
[1772976609634,0.00152,67145.0,67134.0,0.12292097]
[1772976609975,0.00152,67144.0,67132.0,0.05440802]
[1772976610286,0.00152,67144.0,67136.0,0.05440802]
[1772976610482,0.07468487,67146.0,67136.0,0.05440802]
[1772976610483,0.00022001,67146.0,67137.0,0.02464237]
[1772976610715,0.00152,67146.0,67140.0,0.0395252]
[1772976610841,0.00152,67146.0,67141.0,0.0395252]
[1772976611048,0.00152,67151.0,67143.0,0.0395252]
[1772976611249,0.0744547,67155.0,67146.0,0.0395252]
[1772976611488,0.0744524,67157.0,67146.0,0.03992238]
[1772976611656,0.00152,67153.0,67146.0,0.03992238]
[1772976612299,0.0744524,67157.0,67146.0,0.03992238]
[1772976612704,0.07445461,67155.0,67148.0,0.0395252]
[1772976613196,0.08041911,67160.0,67149.0,0.0395252]
[1772976613416,0.12285994,67159.0,67146.0,0.00039718]
[1772976613615,0.12285994,67159.0,67146.0,0.07486174]
[1772976614414,0.12285994,67159.0,67128.0,0.0744845]
[1772976614559,0.07445129,67158.0,67129.0,0.0197626]
[1772976614769,0.12285994,67157.0,67131.0,0.0197626]
[1772976615176,0.00022001,67150.0,67131.0,0.12292097]
[1772976615346,0.00022001,67150.0,67133.0,0.12292097]
[1772976615549,0.00152,67149.0,67134.0,0.0197626]
[1772976615943,0.00022001,67150.0,67135.0,0.0197626]
[1772976616174,0.00152,67148.0,67135.0,0.0197626]
[1772976616792,0.07446349,67147.0,67136.0,0.07447569]
[1772976617009,0.07446349,67147.0,67135.0,0.0197626]
[1772976618617,0.07446349,67147.0,67136.0,0.07447569]
[1772976618814,0.07446349,67147.0,67137.0,0.0197626]
[1772976619458,0.00152,67146.0,67137.0,0.0197626]
[1772976619816,0.00152,67145.0,67137.0,0.0197626]
[1772976620850,0.07446681,67144.0,67137.0,0.09423695]
[1772976621052,0.07446681,67144.0,67137.0,0.0197626]
[1772976621504,0.07598677,67145.0,67137.0,0.0197626]
[1772976621701,0.00152,67146.0,67139.0,0.0197626]
[1772976622105,0.00022001,67147.0,67139.0,0.0197626]
[1772976623709,0.00022001,67147.0,67140.0,0.07447125]
[1772976623908,0.00022001,67147.0,67140.0,0.09423385]
[1772976624115,0.07468376,67147.0,67140.0,0.09423385]
[1772976624746,0.00022001,67147.0,67140.0,0.09423385]
[1772976624951,0.00152,67146.0,67140.0,0.09423385]
[1772976626839,0.07598483,67146.0,67140.0,0.09423385]
[1772976627629,0.00152,67146.0,67140.0,0.09423385]
[1772976627829,0.00152,67146.0,67140.0,0.07447125]
[1772976628650,0.00022001,67147.0,67140.0,0.07447125]
[1772976628847,0.00152,67146.0,67135.0,0.0744768]
[1772976629055,0.07468397,67147.0,67135.0,0.0744768]
[1772976629388,0.00152,67146.0,67135.0,0.0746768]
[1772976629802,0.00152,67146.0,67135.0,0.19759777]
[1772976631999,0.0744657,67145.0,67129.0,0.07448286]
[1772976632184,0.12285994,67144.0,67129.0,0.07448286]
[1772976632350,0.04223027,67142.0,67129.0,0.07448286]
[1772976632536,0.12520632,67142.0,67128.0,0.0002]
[1772976632732,0.04223027,67139.0,67128.0,0.0002]
[1772976632933,0.04223027,67137.0,67128.0,0.0002]
[1772976634134,0.04223905,67135.0,67128.0,0.0002]
[1772976634996,0.00152,67134.0,67128.0,0.0002]
[1772976635553,0.04375905,67134.0,67128.0,0.0002]
[1772976635893,0.04223905,67134.0,67128.0,0.0002]
[1772976636094,0.04223905,67131.0,67125.0,0.0004]
[1772976636301,0.04223905,67131.0,67125.0,0.07488779]
[1772976636504,0.07600012,67133.0,67125.0,0.07488779]
[1772976637490,0.04223905,67132.0,67128.0,0.0002]
[1772976638118,0.11672026,67131.0,67128.0,0.0002]
[1772976638715,0.07448012,67132.0,67128.0,0.0002]
[1772976638914,0.04223903,67131.0,67128.0,0.0002]
[1772976640362,0.04252606,67130.0,67128.0,0.0002]
[1772976640543,0.04252606,67130.0,67125.0,0.0004]
[1772976641136,0.04252606,67130.0,67121.0,0.0002]
[1772976641962,0.04252606,67130.0,67114.0,0.0746992]
[1772976641963,0.04281035,67129.0,67114.0,0.0746992]
[1772976642132,0.07448456,67128.0,67114.0,0.0746992]
[1772976642334,0.04433035,67127.0,67114.0,0.0746992]
[1772976642859,0.04433035,67127.0,67114.0,0.0002]
[1772976643286,0.04281035,67127.0,67114.0,0.0002]
[1772976643444,0.04281035,67125.0,67114.0,0.0002]
[1772976644501,0.04309124,67123.0,67118.0,0.0002]
[1772976646586,0.04336147,67121.0,67118.0,0.0002]
[1772976648131,0.07449122,67122.0,67118.0,0.0002]
[1772976648336,0.00152,67125.0,67118.0,0.0002]
[1772976648750,0.07600824,67125.0,67118.0,0.0002]
[1772976649330,0.119631,67125.0,67118.0,0.0002]
[1772976649911,0.04362276,67124.0,67118.0,0.0002]
[1772976650643,0.04387633,67122.0,67118.0,0.0002]
[1772976651071,0.07449011,67123.0,67118.0,0.0002]
[1772976651283,0.04387633,67122.0,67118.0,0.0002]
[1772976651435,0.04387633,67122.0,67114.0,0.0002]
[1772976651834,0.04438119,67120.0,67112.0,0.01828546]
[1772976652054,0.04438119,67118.0,67113.0,0.0745009]
[1772976652486,0.04438119,67118.0,67111.0,0.00172]
[1772976652487,0.11887732,67118.0,67111.0,0.00172]
[1772976652685,0.04438119,67117.0,67111.0,0.00172]
[1772976653021,0.04438119,67117.0,67106.0,0.08025886]
[1772976654912,0.07449788,67116.0,67106.0,0.08025886]
[1772976655118,0.04462327,67115.0,67106.0,0.08025886]
[1772976656149,0.04462327,67115.0,67106.0,0.08030615]
[1772976656349,0.04462327,67115.0,67106.0,0.08030622]
[1772976656522,0.04462327,67115.0,67106.0,0.00579729]
[1772976656885,0.0745001,67114.0,67099.0,0.0002564]
[1772976657171,0.07449677,67117.0,67101.0,0.07603453]
[1772976657363,0.00152,67116.0,67102.0,0.12610962]
[1772976657767,0.00152,67115.0,67102.0,0.12610962]
[1772976657976,0.07449677,67117.0,67102.0,0.12610962]
[1772976658185,0.00152,67116.0,67102.0,0.12610962]
[1772976658972,0.07449677,67117.0,67104.0,0.12610962]
[1772976659158,0.00152,67116.0,67104.0,0.12610962]
[1772976660284,0.00152,67116.0,67106.0,0.0002]
[1772976661888,0.07449899,67115.0,67106.0,0.00035]
[1772976664083,0.07449899,67115.0,67107.0,0.07450787]
[1772976664431,0.07449788,67116.0,67107.0,0.2033423]
[1772976665078,0.04521763,67119.0,67107.0,0.2033423]
[1772976665079,1e-08,67125.0,67108.0,0.12883443]
[1772976665277,0.07448825,67125.0,67108.0,0.12883443]
[1772976665481,1e-08,67125.0,67108.0,0.12883443]
[1772976666113,1e-08,67125.0,67109.0,0.07450565]
[1772976666331,1e-08,67125.0,67110.0,0.12883443]
[1772976666773,1e-08,67125.0,67109.0,0.07602565]
[1772976666974,0.04680379,67123.0,67109.0,0.07602565]
[1772976667765,0.04680379,67121.0,67101.0,0.00152]
[1772976667970,0.12146646,67118.0,67099.0,0.0019764]
[1772976668166,0.12146646,67118.0,67099.0,1e-08]
[1772976668167,0.12146646,67113.0,67099.0,1e-08]
[1772976668392,0.04699858,67110.0,67099.0,0.0001194]
[1772976668631,0.12146646,67107.0,67099.0,0.0001194]
[1772976668817,0.04699858,67104.0,67092.0,1e-08]
[1772976668972,0.16846504,67102.0,67092.0,1e-08]
[1772976669174,0.12146646,67100.0,67092.0,1e-08]
[1772976669384,0.00152,67103.0,67084.0,0.0002564]
[1772976669385,0.04699858,67097.0,67084.0,0.0002564]
[1772976669575,0.04699858,67095.0,67084.0,0.0002564]
[1772976669849,0.04699858,67093.0,67084.0,0.0002564]
[1772976670056,0.04699858,67093.0,67076.0,0.12883443]
[1772976670057,0.04699858,67093.0,67079.0,0.08028853]
[1772976670268,0.07452453,67092.0,67079.0,0.00575]
[1772976670472,0.04732229,67091.0,67079.0,0.00575]
[1772976670687,0.04732229,67089.0,67079.0,1e-08]
[1772976670854,0.12146646,67087.0,67079.0,1e-08]
[1772976671061,0.04732229,67086.0,67079.0,1e-08]
[1772976671500,0.04732229,67086.0,67071.0,0.0002462]
[1772976671632,0.04732229,67086.0,67071.0,0.07479305]
[1772976671823,0.04732229,67086.0,67072.0,0.12883443]
[1772976672029,0.047509,67084.0,67072.0,0.12883443]
[1772976672234,0.00152,67083.0,67072.0,0.12883443]
[1772976672673,0.00152,67083.0,67071.0,0.07479305]
[1772976672674,0.047509,67081.0,67071.0,0.0002462]
[1772976673524,0.047509,67081.0,67072.0,0.0002]
[1772976674110,0.00152,67089.0,67073.0,0.12883443]
[1772976674314,0.00152,67088.0,67073.0,0.12883443]
[1772976674692,0.07604932,67088.0,67075.0,0.12883443]
[1772976674912,0.07451867,67098.0,67075.0,0.12883443]
[1772976675111,0.02538431,67097.0,67075.0,0.1289536]
[1772976675474,0.12146646,67096.0,67075.0,0.1289536]
[1772976675678,0.02386431,67095.0,67076.0,0.13035443]
[1772976676691,0.07452231,67094.0,67078.0,0.12883443]
[1772976676827,0.00152,67093.0,67078.0,0.12883443]
[1772976677264,0.07452231,67094.0,67078.0,0.12883443]
[1772976677577,0.00152,67092.0,67078.0,0.12883443]
[1772976677820,0.07452231,67094.0,67078.0,0.12883443]
[1772976677821,0.03133616,67091.0,67078.0,0.12883443]
[1772976678035,0.03285616,67091.0,67078.0,0.12883443]
[1772976678556,0.03133616,67099.0,67078.0,0.12883443]
[1772976678755,0.00192,67100.0,67080.0,0.12883443]
[1772976679219,0.07643577,67100.0,67080.0,0.12883443]
[1772976679434,0.12146646,67097.0,67079.0,0.07605897]
[1772976679634,0.07643577,67100.0,67079.0,0.07605897]
[1772976679635,0.03133616,67095.0,67079.0,0.07453897]
[1772976679833,0.03133616,67093.0,67079.0,0.07453897]
[1772976680750,0.03133616,67091.0,67079.0,0.07453897]
[1772976682392,0.07452453,67093.0,67080.0,0.12883443]
[1772976682602,0.07604453,67092.0,67080.0,0.12883443]
[1772976682956,0.00152,67092.0,67081.0,0.07453675]
[1772976683353,0.07452244,67094.0,67081.0,0.07453675]
[1772976683557,0.03285616,67093.0,67081.0,0.07453675]
[1772976684070,0.00152,67092.0,67081.0,0.07453675]
[1772976684290,0.03285616,67092.0,67081.0,0.07453675]
[1772976685007,0.07452564,67091.0,67081.0,0.07453675]
[1772976687943,0.07452564,67091.0,67079.0,0.07453675]
[1772976687944,0.03133616,67090.0,67078.0,0.07625937]
[1772976688369,0.00152,67089.0,67078.0,0.07625937]
[1772976689194,0.07452897,67088.0,67078.0,0.07625937]
[1772976691151,0.07437897,67088.0,67078.0,0.07625937]
[1772976692790,0.03133616,67087.0,67078.0,0.07625937]
[1772976694305,0.07453119,67086.0,67078.0,0.07625937]
[1772976694507,0.20682461,67099.0,67078.0,0.07625937]
[1772976694727,0.20682461,67099.0,67079.0,0.13142106]
[1772976694728,0.01566808,67098.0,67079.0,0.13142106]
[1772976694866,0.01718808,67098.0,67079.0,0.13142106]
[1772976695287,0.01566808,67096.0,67079.0,0.13142106]
[1772976696265,0.01566808,67094.0,67080.0,0.20595892]
[1772976696435,0.01566808,67094.0,67081.0,0.13142106]
[1772976696668,0.00152,67093.0,67081.0,0.13142106]
[1772976697347,0.00152,67092.0,67081.0,0.13142106]
[1772976697590,0.14888331,67091.0,67069.0,0.07454949]
[1772976697840,0.14888331,67091.0,67072.0,0.0747463]
[1772976697841,0.01566808,67087.0,67072.0,0.0747463]
[1772976698024,0.01566808,67085.0,67075.0,0.07466191]
[1772976698229,0.01566808,67082.0,67075.0,0.00011917]
[1772976698816,0.00152,67081.0,67075.0,0.00011917]
[1772976698969,0.01718808,67081.0,67075.0,0.00031917]
[1772976700190,0.01718808,67081.0,67076.0,0.07454231]
[1772976700393,0.00152,67080.0,67076.0,0.07454231]
[1772976700795,0.09020485,67081.0,67069.0,0.00152]
[1772976700992,0.07453677,67081.0,67070.0,0.07454675]
[1772976701192,0.01566808,67080.0,67070.0,0.07454675]
[1772976701453,0.01566808,67080.0,67069.0,0.07454786]
[1772976702218,0.09172674,67080.0,67069.0,0.07454786]
[1772976703946,0.01718808,67080.0,67069.0,0.07454786]
[1772976704144,0.00152,67083.0,67070.0,0.13142106]
[1772976704344,0.07605369,67084.0,67072.0,0.13142106]
[1772976705992,0.07453369,67084.0,67072.0,0.13142106]
[1772976706572,0.07452453,67093.0,67073.0,0.07454564]
[1772976706773,0.0001193,67093.0,67078.0,0.01197072]
[1772976706972,0.00152,67094.0,67081.0,0.13142106]
[1772976707174,0.00152,67096.0,67083.0,0.14339178]
[1772976707863,0.00152,67097.0,67085.0,0.01212219]
[1772976708100,0.00152,67097.0,67085.0,0.14354325]
[1772976708329,0.01216934,67099.0,67085.0,0.13142106]
[1772976708487,0.00152,67099.0,67086.0,0.01212219]
[1772976708836,0.00022001,67096.0,67087.0,0.20747114]
[1772976709027,0.00022001,67096.0,67087.0,0.07605008]
[1772976709231,0.00022001,67096.0,67087.0,0.07453008]
[1772976709435,0.00022001,67096.0,67087.0,0.07605008]
[1772976710235,0.00022001,67096.0,67087.0,0.07453008]
[1772976710539,0.01216934,67095.0,67081.0,0.07465518]
[1772976710739,0.01216934,67093.0,67081.0,0.0001193]
[1772976711446,0.00152,67092.0,67081.0,0.0001193]
[1772976711745,0.01216934,67089.0,67079.0,0.00152]
[1772976711923,0.01228862,67089.0,67079.0,0.07605872]
[1772976712955,0.01216934,67087.0,67079.0,0.07605807]
[1772976713560,0.01216934,67085.0,67072.0,0.07626651]
[1772976713792,0.13230786,67085.0,67072.0,0.07474651]
[1772976714035,0.01216934,67084.0,67065.0,0.07475451]
[1772976714177,0.00152,67086.0,67066.0,0.13142106]
[1772976714178,0.01216934,67082.0,67066.0,0.13142106]
[1772976714633,0.01216934,67082.0,67066.0,0.14379472]
[1772976714833,0.01368934,67081.0,67066.0,0.14379472]
[1772976715894,0.07453786,67080.0,67067.0,0.07455231]
[1772976716207,0.0882272,67080.0,67068.0,0.13294106]
[1772976717310,0.0882272,67080.0,67072.0,0.0002]
[1772976717509,0.01216934,67079.0,67072.0,0.0002]
[1772976718144,0.07454008,67078.0,67072.0,0.0002]
[1772976719152,0.01216934,67077.0,67072.0,0.0002]
[1772976720023,0.07454231,67076.0,67072.0,0.0002]
[1772976720236,0.01216934,67075.0,67068.0,0.00152]
[1772976720654,0.07454231,67076.0,67068.0,0.20749213]
[1772976720855,0.07454231,67076.0,67068.0,0.13294106]
[1772976722327,0.07454231,67076.0,67068.0,0.20749181]
[1772976722519,0.07454231,67076.0,67068.0,0.13294106]
[1772976724929,0.07454231,67076.0,67068.0,0.13314106]
[1772976725731,0.07606231,67077.0,67068.0,0.20769189]
[1772976727886,0.07606231,67077.0,67068.0,0.13314106]
[1772976728125,0.07606231,67077.0,67061.0,0.0002]
[1772976728126,0.01454503,67076.0,67061.0,0.0002]
[1772976728267,0.01454503,67076.0,67061.0,0.0747589]
[1772976728648,0.01454503,67076.0,67062.0,0.00152]
[1772976728763,0.01454503,67076.0,67061.0,0.0747589]
[1772976728969,0.01454503,67076.0,67061.0,0.0762789]
[1772976729170,0.01498562,67074.0,67061.0,0.0002]
[1772976729389,0.01498562,67074.0,67061.0,0.00172]
[1772976729594,0.01498562,67074.0,67061.0,0.13017074]
[1772976730776,0.01498562,67074.0,67061.0,0.14502149]
[1772976731923,0.07453675,67081.0,67064.0,0.01485075]
[1772976732128,0.07453675,67081.0,67068.0,0.01485075]
[1772976732129,0.00152,67081.0,67068.0,0.01485075]
[1772976732312,0.00152,67081.0,67071.0,0.12845074]
[1772976732659,0.00152,67082.0,67073.0,0.12845074]
[1772976732883,0.08951681,67086.0,67073.0,0.12845074]
[1772976733083,0.01498562,67094.0,67071.0,0.12845074]
[1772976733234,0.01498562,67094.0,67074.0,0.01485075]
[1772976733428,0.07452135,67095.0,67076.0,0.14330149]
[1772976733629,1e-08,67096.0,67076.0,0.01485075]
[1772976733852,1e-08,67096.0,67080.0,0.12845074]
[1772976734194,1e-08,67096.0,67084.0,0.12845074]
[1772976734380,1e-08,67096.0,67087.0,0.01485075]
[1772976734565,1e-08,67096.0,67089.0,0.12845074]
[1772976735086,0.07451215,67104.0,67088.0,0.00152]
[1772976735087,0.07449789,67116.0,67090.0,0.15910719]
[1772976735288,0.0002169,67117.0,67093.0,0.12845074]
[1772976735490,0.13744297,67114.0,67095.0,0.12845074]
[1772976735644,0.01498562,67112.0,67095.0,0.12845074]
[1772976735830,0.07450343,67111.0,67096.0,0.07452009]
[1772976736190,0.01498562,67110.0,67096.0,0.07604009]
[1772976736366,0.01498562,67109.0,67087.0,0.20297971]
[1772976736693,0.07450343,67111.0,67056.0,0.47234057]
[1772976736694,0.01498562,67105.0,67080.0,0.07453786]
[1772976736945,0.01498562,67101.0,67080.0,0.07453786]
[1772976737122,0.01498562,67099.0,67080.0,0.07605786]
[1772976737332,0.01498562,67097.0,67080.0,0.07605786]
[1772976737551,0.01498562,67095.0,67079.0,0.00575]
[1772976737744,0.01498562,67091.0,67075.0,0.07515944]
[1772976737964,0.13592297,67087.0,67059.0,0.07456118]
[1772976738166,0.01498562,67084.0,67060.0,0.07455951]
[1772976738360,0.13592297,67081.0,67062.0,0.07455758]
[1772976738578,0.13592297,67079.0,67062.0,0.07455762]
[1772976738744,0.01650562,67078.0,67063.0,0.0747735]
[1772976738945,0.01650562,67078.0,67063.0,0.0002169]
[1772976739132,0.01650562,67078.0,67063.0,0.00033618]
[1772976739553,0.01650562,67078.0,67063.0,0.07489282]
[1772976739974,0.07454119,67077.0,67063.0,0.07489282]
[1772976740187,0.01498562,67076.0,67063.0,0.07489282]
[1772976740891,0.01498562,67076.0,67064.0,0.00152]
[1772976741248,0.01498562,67076.0,67063.0,0.00033618]
[1772976741249,0.01498562,67076.0,67063.0,0.00053618]
[1772976741648,0.01498562,67076.0,67063.0,0.07509261]
[1772976742079,0.01498562,67074.0,67063.0,0.07509261]
[1772976742486,0.01498562,67091.0,67066.0,0.12845074]
[1772976742660,0.07452549,67092.0,67063.0,0.07509261]
[1772976742661,0.00022001,67085.0,67070.0,0.12845074]
[1772976742878,0.01520563,67085.0,67072.0,0.12845074]
[1772976743279,0.01672563,67085.0,67072.0,0.12845074]
[1772976744229,0.07453342,67084.0,67074.0,0.12845074]
[1772976744662,0.00022001,67085.0,67074.0,0.12845074]
[1772976744935,0.07475238,67085.0,67074.0,0.14330149]
[1772976746237,0.07475238,67085.0,67075.0,0.20299416]
[1772976747214,0.07475238,67085.0,67076.0,0.12845074]
[1772976748246,0.00022001,67085.0,67076.0,0.12845074]
[1772976748404,0.07475315,67085.0,67076.0,0.20299193]
[1772976748813,0.01498562,67084.0,67075.0,0.07454335]
[1772976749626,0.00022001,67085.0,67075.0,0.07454335]
[1772976749827,0.00022001,67085.0,67076.0,0.12845074]
[1772976750047,0.07453342,67084.0,67076.0,0.12845074]
[1772976750404,0.07453342,67084.0,67077.0,0.07454119]
[1772976751221,0.07453342,67084.0,67072.0,0.01485075]
[1772976751222,0.01498562,67082.0,67059.0,0.12845074]
[1772976751359,0.01498562,67080.0,67064.0,0.12845074]
[1772976753563,0.07453897,67079.0,67064.0,0.12845074]
[1772976753737,0.01498562,67078.0,67064.0,0.12845074]
[1772976753945,0.01498562,67076.0,67064.0,0.20300638]
[1772976754563,0.01498562,67076.0,67064.0,0.20452638]
[1772976754785,0.01498562,67076.0,67064.0,0.20258985]
[1772976756132,0.08952904,67075.0,67064.0,0.20258985]
[1772976757017,0.07453342,67084.0,67068.0,0.12999158]
[1772976757225,0.07453342,67084.0,67071.0,0.01485075]
[1772976757449,0.07453342,67084.0,67072.0,0.14619582]
[1772976757656,0.07453342,67084.0,67074.0,0.12999158]
[1772976757886,0.07475343,67085.0,67075.0,0.01485075]
[1772976758100,0.07475343,67085.0,67076.0,0.12999158]
[1772976758304,0.07475343,67085.0,67076.0,0.12982505]
[1772976758504,0.07475343,67085.0,67076.0,0.20436709]
[1772976759693,0.07475343,67085.0,67076.0,0.07454204]
[1772976759896,0.07475343,67085.0,67077.0,0.12999158]
[1772976760460,0.07475343,67085.0,67077.0,0.12982509]
[1772976761608,0.07475343,67085.0,67074.0,0.07454231]
[1772976761609,0.01631377,67084.0,67074.0,0.07454453]
[1772976762355,0.07453453,67083.0,67074.0,0.07454453]
[1772976762762,0.07453453,67084.0,67075.0,0.14617163]
[1772976763382,0.07475454,67084.0,67075.0,0.14617163]
[1772976764710,0.07475454,67084.0,67075.0,0.20453389]
[1772976765410,0.07475454,67084.0,67075.0,0.07454231]
[1772976765817,0.07475454,67084.0,67075.0,0.0743758]
[1772976766658,1.46e-06,67086.0,67077.0,0.12999158]
[1772976766885,0.07474604,67091.0,67081.0,0.12999158]
[1772976766886,0.07626648,67091.0,67081.0,0.12999158]
[1772976767415,0.01631377,67090.0,67079.0,0.00152]
[1772976768545,0.07452786,67089.0,67079.0,0.00152]
[1772976768747,0.07452786,67089.0,67059.0,0.07456047]
[1772976768748,0.01631377,67088.0,67072.0,0.20453787]
[1772976768957,0.13203357,67088.0,67069.0,0.074549]
[1772976769164,0.01631377,67085.0,67067.0,0.20606357]
[1772976769388,0.01631377,67083.0,67067.0,0.07607199]
[1772976770876,0.01631377,67081.0,67064.0,0.13019158]
[1772976771075,0.01631377,67079.0,67064.0,0.0002]
[1772976771279,0.13203357,67080.0,67064.0,0.0002]
[1772976771280,0.01631377,67077.0,67064.0,0.0002]
[1772976773081,0.01631377,67075.0,67064.0,0.0002]
[1772976774489,0.07454231,67076.0,67064.0,0.0002]
[1772976774694,0.07454231,67079.0,67066.0,0.01618005]
[1772976774953,0.07454231,67079.0,67069.0,0.12999158]
[1772976775203,0.07454231,67079.0,67070.0,0.07454897]
[1772976775619,0.07453897,67080.0,67070.0,0.07454897]
[1772976775837,0.07452935,67088.0,67072.0,0.12999158]
[1772976776042,0.09236444,67087.0,67074.0,0.12999158]
[1772976776204,0.09236444,67087.0,67074.0,0.14769163]
[1772976776410,0.09084444,67087.0,67074.0,0.14769163]
[1772976776620,0.09236444,67087.0,67074.0,0.14769163]
[1772976777624,0.01631377,67086.0,67075.0,0.07454342]
[1772976777980,0.01783377,67086.0,67075.0,0.07454342]
[1772976778928,0.00152,67085.0,67075.0,0.07454342]
[1772976779651,0.07453342,67084.0,67074.0,0.20605564]
[1772976779853,0.07453342,67084.0,67074.0,0.00152]
[1772976780082,0.01631377,67083.0,67074.0,0.00152]
[1772976780764,0.01631377,67083.0,67068.0,0.20606276]
[1772976780981,0.01631377,67081.0,67063.0,0.00205618]
[1772976781216,0.01631377,67079.0,67063.0,0.00205618]
[1772976781417,0.01631377,67077.0,67063.0,0.00053618]
[1772976781638,0.07454231,67076.0,67063.0,0.0750927]
[1772976781844,0.01631377,67075.0,67063.0,0.0750927]
[1772976782799,0.01631377,67075.0,67063.0,0.0750929]
[1772976783056,0.07454231,67076.0,67065.0,0.12571003]
[1772976783288,0.07454231,67076.0,67068.0,0.01618005]
[1772976783422,0.07454231,67076.0,67069.0,0.12571003]
[1772976783828,0.01631377,67075.0,67064.0,0.07475493]
[1772976784041,0.07454231,67076.0,67064.0,0.07475493]
[1772976784350,0.07454231,67076.0,67065.0,0.12901101]
[1772976784813,0.07606231,67076.0,67065.0,0.14617213]
[1772976785871,0.07606231,67076.0,67065.0,0.2207257]
[1772976786946,0.07606231,67076.0,67065.0,0.20356458]
[1772976787130,0.09224579,67076.0,67065.0,0.20356458]
[1772976787898,0.09224579,67076.0,67064.0,0.0002]
[1772976787899,0.01618348,67075.0,67064.0,0.0002]
[1772976788090,0.01618348,67075.0,67064.0,0.07475548]
[1772976788956,0.07454231,67076.0,67066.0,0.01721593]
[1772976789133,0.07606231,67076.0,67067.0,0.14622694]
[1772976789522,0.07454231,67076.0,67067.0,0.14622694]